Cogmind - Beta 16.1 @@@ ROGUE MODE // 2026.04.27 @ 04:05:23 Player: shapeshifter Result: Destroyed by Executioner with Helical Railgun Performance ------------- Evolutions (8) 4000 Regions Visited (23) 4600 Robots Destroyed (91) 455 Value Destroyed (4820) 4820 Prototype IDs (130) 2600 Alien Tech Used (4) 800 Bonus (6100) 6100 TOTAL SCORE: 23375 Bonus ------- High Alert Combat Kills 1662 Follower Combat Kills 150 Entered DSFs 500 Registered with UFD 300 Met Optimus in HQ 500 Met Zhirov 300 Met Warlord at Base 500 MAIN.C Attacked Warlord 500 Hacked Protovariant 500 Scanned by Researcher 500 Met Optimus at Protoforge 1000 Friendly Fire -312 Cogmind --------- Core Integrity 0/1450 Matter 295/300 Energy 276/280 System Corruption 0% Temperature Cool (0) Movement Rolling (80) Ox1 Location -2/Protoforge Parts ------- > --- POWER (2) -------- Light Quantum Reactor Light Quantum Reactor > --- PROPULSION (8) --- Overtuned Huge Scrapsphere Overtuned Huge Scrapsphere Overtuned Huge Scrapsphere Overtuned Huge Scrapsphere > --- UTILITY (11) ----- 0bPrime Scrap Suit Experimental Optical Array Experimental Core Analyzer Experimental Kinecellerator Makeshift Core Shielding Heavy Armor Plating Makeshift Medium Armor Plating Makeshift Medium Armor Plating Experimental System Purifier > --- WEAPON (2) ------- Concept XC Strikerail > --- INVENTORY (5) ---- Transdimensional Reconstructor Subatomic Replicator Core Cannon Gamma Bomb Array Peak State ------------ > --- POWER ------------ Overtuned Antimatter Reactor Improved Quantum Reactor > --- PROPULSION ------- Overtuned Huge Scrapsphere Overtuned Huge Scrapsphere Overtuned Huge Scrapsphere Overtuned Huge Scrapsphere > --- UTILITY ---------- 0bPrime Scrap Suit Experimental Cooling System Experimental Cooling System Plexus Tether Experimental Core Analyzer Experimental Kinecellerator Makeshift Medium Armor Plating Centrium Medium Armor Plating Concept Antimissile System Experimental System Purifier > --- WEAPON ----------- Concept XC Strikerail Concept XC Strikerail > --- INVENTORY -------- Transdimensional Reconstructor Subatomic Replicator Terrabomb Core Cannon [Rating: 193] Favorites ----------- Power Light Nuclear Core Engine Light Ion Engine Power Core Light Nuclear Core Reactor Overtuned Antimatter Reactor Propulsion Overtuned Huge Scrapsphere Treads Light Treads Leg Experimental VSS Leg Wheel Overtuned Huge Scrapsphere Flight Unit Impulse Thruster Utility Experimental Optical Array Device Seismic Detector Storage Large Storage Unit Processor Experimental Optical Array Hackware Advanced System Shield Protection Makeshift Medium Armor Plating Weapon Light Cannon Energy Gun Improved Lightning Gun Energy Cannon Heavy Proton Cannon Ballistic Gun Concept XC Strikerail Ballistic Cannon Light Cannon Launcher Rocket Launcher Special Weapon Remote Datajack Impact Weapon Great Maul Slashing Weapon Phasing Sabre Piercing Weapon Vortex Lance Special Melee Weapon Datajack Build | -11 -10 -10 -10 -8 -6 -6 -5 -5 -5 -5 -4 -4 -4 -4 -4 -4 -4 -3 -3 -3 -2 -2 -2 ------- Run | Yrd Mat Min Sub Scr Fac DSF Fac Upp Upp Zhi Pro Fac Was Fac Upp Upp War Pro Res Qua Res Tes Frg Slots Evolved 16 | . . . . . 8 . 2 . . . . 2 . . . . . . 2 . 2 . . Power 1 | . . . . . . . 1 . . . . . . . . . . . . . . . . Propulsion 6 | . . . . . 4 . . . . . . 1 . . . . . . 1 . . . . Utility 9 | . . . . . 4 . 1 . . . . 1 . . . . . . 1 . 2 . . Weapon . | . . . . . . . . . . . . . . . . . . . . . . . . Parts Attached 172 | 8 1 1 8 14 . 15 14 1 1 4 1 18 1 3 3 . 6 . 15 8 4 10 36 Power 23 | 1 . 1 2 1 . 2 2 . . . . 3 . . . . 1 . 3 1 . . 6 Engine 5 | 1 . . 2 . . 2 . . . . . . . . . . . . . . . . . Core 7 | . . 1 . 1 . . 2 . . . . 2 . . . . . . 1 . . . . Reactor 11 | . . . . . . . . . . . . 1 . . . . 1 . 2 1 . . 6 Propulsion 44 | 3 . . . 4 . 5 2 . . . . 7 . 1 . . 2 . 9 4 2 . 5 Treads 2 | 2 . . . . . . . . . . . . . . . . . . . . . . . Leg 1 | . . . . . . . . . . . . . . . . . . . . . . . 1 Wheel 8 | 1 . . . 3 . . . . . . . . . . . . . . . . . . 4 Hover . | . . . . . . . . . . . . . . . . . . . . . . . . Flight 33 | . . . . 1 . 5 2 . . . . 7 . 1 . . 2 . 9 4 2 . . Utility 68 | 2 1 . 1 5 . 6 7 1 . 3 . 6 . 2 1 . 1 . 3 1 2 7 19 Device 34 | 1 . . . 2 . 2 2 . . . . 4 . 1 1 . 1 . 3 1 1 6 9 Storage 6 | 1 1 . . 2 . . . . . 1 . . . . . . . . . . . . 1 Processor 9 | . . . . . . 1 2 . . . . 1 . 1 . . . . . . . . 4 Hackware 8 | . . . . . . 3 2 . . 2 . 1 . . . . . . . . . . . Protection 11 | . . . 1 1 . . 1 1 . . . . . . . . . . . . 1 1 5 Artifact . | . . . . . . . . . . . . . . . . . . . . . . . . Weapon 37 | 2 . . 5 4 . 2 3 . 1 1 1 2 1 . 2 . 2 . . 2 . 3 6 Energy Gun 4 | . . . . . . . 1 . . . . . . . 1 . . . . . . 1 1 Energy Cannon 3 | . . . . . . . 1 . . 1 . . . . . . . . . . . . 1 Ballistic Gun 7 | 2 . . 2 . . . . . . . . . . . . . . . . . . . 3 Ballistic Cannon 6 | . . . 2 1 . . 1 . . . . 1 . . . . . . . . . 1 . Launcher 4 | . . . 1 . . 1 . . . . . . . . . . . . . . . 1 1 Special Weapon 4 | . . . . 2 . 1 . . . . . . . . . . . . . 1 . . . Impact Weapon 1 | . . . . . . . . . 1 . . . . . . . . . . . . . . Slashing Weapon 3 | . . . . . . . . . . . 1 . . . 1 . . . . 1 . . . Piercing Weapon 4 | . . . . . . . . . . . . 1 1 . . . 2 . . . . . . Special Melee Weapon 1 | . . . . 1 . . . . . . . . . . . . . . . . . . . Unidentified Prototypes 31 | . . . . 1 . . 2 . . 2 . 2 . . . . 4 . . 2 . 7 11 Corrupted Parts 2 | . . . . . . 1 . . . . . . . . . . . . . . . . 1 System Corruption 16 | . . . . . . 6 . . . . . . . . . . . . . . . . 10 Parts Lost 47 | . . 1 4 . . 4 5 . . . 2 . . 2 . . 1 1 7 1 2 1 16 Power 5 | . . 1 . . . 1 1 . . . . . . . . . . . . . . . 2 Propulsion 22 | . . . 2 . . 2 1 . . . 1 . . 1 . . 1 1 3 1 1 1 7 Utility 13 | . . . 1 . . 1 . . . . 1 . . 1 . . . . 3 . . . 6 Weapon 7 | . . . 1 . . . 3 . . . . . . . . . . . 1 . 1 . 1 Highest Loss Streak 8 | . . 1 3 . . 3 2 . . . 2 . . 2 . . 1 1 4 1 2 1 8 To Critical Strikes . | . . . . . . . . . . . . . . . . . . . . . . . . Average Backups 5 | 3 7 11 4 9 13 11 2 1 1 2 3 3 5 5 5 5 5 5 4 4 4 4 4 Power . | . 1 1 . . . . . . . . . . . . . . . 1 1 . . . . Propulsion . | 1 1 1 . . 1 1 . . . . . . . . . . . . . . . . . Utility 2 | . 3 5 2 4 6 3 1 1 1 1 1 1 3 3 2 4 3 3 1 1 . . . Weapon 1 | . 1 3 1 1 1 1 . . . . . . . . 1 . . . . . 1 1 1 Tool/Special . | . . . . . . . . . . . . . . . . . . . . . . . . Unused Backups 26 | . . . 6 . . 10 1 1 . . . 2 . 1 . 1 1 . . 1 . . 2 Power . | . . . . . . . . . . . . . . . . . . . . . . . . Propulsion . | . . . . . . . . . . . . . . . . . . . . . . . . Utility 17 | . . . 4 . . 6 1 1 . . . 1 . 1 . 1 1 . . 1 . . . Weapon 4 | . . . 2 . . 1 . . . . . 1 . . . . . . . . . . . Tool/Special 5 | . . . . . . 3 . . . . . . . . . . . . . . . . 2 Average Slot Usage (%) 79 | . 96 99 84 77 42 58 76 69 74 76 65 85 93 92 86 89 94 88 78 76 65 75 69 Engine 3 | . 14 1 11 . . 2 2 . . . . . 1 . . . . . . . . . . Core 4 | . . 11 2 12 6 2 7 11 11 11 11 9 3 5 5 5 3 . 1 . . . . Reactor 2 | . . . . . . . . . . . . . 5 5 5 5 4 5 5 4 4 4 7 Treads 7 | . 14 14 27 . . . . . . . . . . . . . . . . . . . . Wheel 7 | . 14 14 . 21 13 9 . . . . . . . . . . . . . . . . 15 Flight 9 | . . . . 2 . 10 17 17 17 17 12 25 31 30 26 26 32 30 28 31 25 29 1 Device 12 | . 14 14 . 12 6 11 16 17 17 16 12 17 15 11 11 15 15 15 17 19 16 19 19 Storage 3 | . 10 14 . 10 6 5 . . . . . . . . . . . . . . . . . Processor 5 | . . . . . . 2 10 11 11 9 5 9 10 13 15 15 15 15 11 9 8 8 7 Hackware 2 | . . . . . . 1 10 5 5 5 11 10 15 15 13 10 10 10 4 4 4 4 . Protection 5 | . . . 12 2 2 3 1 4 5 5 . . . . . . . . . . 2 3 8 Ballistic Gun 4 | . 28 28 2 . . . . . . . . . . . . . . . . . . . 6 Ballistic Cannon 6 | . . . 22 5 . . . . . . . 4 5 4 . . . . . . . 3 . Special Weapon 1 | . . . . 7 6 6 3 . . . . . . . . . . . . 1 . . . Piercing Weapon 1 | . . . . . . . . . . . . 4 5 5 5 5 7 10 6 1 . . . Peak Build Rating 193 | 6 7 10 12 28 31 78 96 78 81 90 84 119 120 126 113 112 141 134 149 180 185 180 193 Average Rating 75 | 4 6 9 10 16 29 53 85 76 80 82 68 105 118 121 108 112 128 132 131 166 172 164 168 On Entrance 83 | . 6 7 10 1 28 31 77 76 77 81 84 67 119 120 105 112 112 134 126 142 180 150 167 Avg Prop Armor Cover (%) 11 | 12 12 12 . 4 . 5 . . . . . . . . . . . . . . . . . Naked Turns 63 | . . . 1 62 . . . . . . . . . . . . . . . . . . . Heaviest Build 124 | 11 27 29 30 60 65 69 34 23 27 36 27 38 41 41 34 34 48 48 55 59 65 65 124 Greatest Support 80 | 40 10 40 40 22 22 45 39 33 33 33 33 53 50 53 42 42 62 54 62 66 66 68 80 Greatest Overweight (x) 5 | 1 2 2 . 2 2 5 . . . 1 . . . . . . . 1 1 . . . 1 Average Overweight (x) . | . 1 1 . . 2 1 . . . . . . . . . . . . . . . . . Largest Inventory Capacity 25 | 8 15 15 15 20 20 20 5 5 5 5 5 5 5 5 5 5 5 5 5 5 5 5 25 Average Capacity 8 | 5 13 15 5 14 20 17 5 5 5 5 5 5 5 5 5 5 5 5 5 5 5 5 6 Most Carried 25 | 5 9 12 12 20 20 20 5 5 5 5 5 5 5 5 5 5 5 5 5 5 5 5 25 Average Carried 6 | 3 7 11 4 11 18 15 4 3 3 4 4 4 4 4 4 4 4 5 4 4 5 5 6 Final Capacity 20 | 5 15 15 5 20 20 5 5 5 5 5 5 5 5 5 5 5 5 5 5 5 5 5 5 Final Carried 19 | 5 9 11 5 18 19 5 5 3 4 5 5 5 5 5 5 5 5 5 5 5 5 5 5 Scrap Suit Usage (%) 16 | . . . . . . . . . . . . . . . . . . . . . . . 91 Parts Cannibalized 4 | . . . . . . . . . . . . . . . . . . . . . . . 4 Class Distribution -------------------- 56% | Mutant 17% | Scavenger-Scrapper 12% | Hacker-Ninja 7% | Scout Dominant Class ---------------- Mutant | -10/Materials Mutant | -10/Mines Mutant | -10/Subcaves Mutant | -8/Scraptown Mutant | -6/Factory Mutant | -6/DSF Mutant | -5/Factory Mutant | -5/Upper Caves Mutant | -5/Upper Caves Mutant | -5/Zhirov Hacker-Mutant | -4/Proximity Caves Hacker-Ninja | -4/Factory Hacker-Ninja | -4/Waste Hacker-Ninja | -4/Factory Hacker-Ninja | -4/Upper Caves Hacker-Ninja | -4/Upper Caves Hacker-Ninja | -4/Warlord Hacker-Assassin | -3/Proximity Caves Scavenger-Scout | -3/Research Scout | -3/Quarantine Scout | -2/Research Scout | -2/Testing Scavenger-Scrapper | -2/Protoforge Resources | -11 -10 -10 -10 -8 -6 -6 -5 -5 -5 -5 -4 -4 -4 -4 -4 -4 -4 -3 -3 -3 -2 -2 -2 ----------- Run | Yrd Mat Min Sub Scr Fac DSF Fac Upp Upp Zhi Pro Fac Was Fac Upp Upp War Pro Res Qua Res Tes Frg Matter Collected 4513 | 338 22 185 305 251 . 284 207 . 84 . 80 26 391 36 62 37 . . 248 32 170 66 1689 Remotely . | . . . . . . . . . . . . . . . . . . . . . . . . Salvage Created 5165 | 191 22 147 81 . . 314 . . . . 144 26 363 45 231 . . . 294 32 136 42 3097 Parts 233 | 18 . 7 7 . . 8 . . . . . . 4 1 4 . . . 26 3 8 1 146 Haulers Intercepted . | . . . . . . . . . . . . . . . . . . . . . . . . Recyclers Shooed 2 | 1 . 1 . . . . . . . . . . . . . . . . . . . . . Parts Field Recycled . | . . . . . . . . . . . . . . . . . . . . . . . . Retrieved Matter . | . . . . . . . . . . . . . . . . . . . . . . . . Parts Self-Destructed 15 | . . . 10 . . . . 2 . . . . . . 2 . . 1 . . . . . Prevented . | . . . . . . . . . . . . . . . . . . . . . . . . Parts Restored . | . . . . . . . . . . . . . . . . . . . . . . . . Kills | -11 -10 -10 -10 -8 -6 -6 -5 -5 -5 -5 -4 -4 -4 -4 -4 -4 -4 -3 -3 -3 -2 -2 -2 ------- Run | Yrd Mat Min Sub Scr Fac DSF Fac Upp Upp Zhi Pro Fac Was Fac Upp Upp War Pro Res Qua Res Tes Frg Combat Hostiles Destroyed 75 | . . 2 6 . . 10 . . . . . . 1 . 1 . . . 9 . 2 . 44 Melee 12 | . . . . . . . . . . . . . . . 1 . . . 9 . 2 . . Guns 41 | . . 2 . . . . . . . . . . . . . . . . . . . . 39 Cannons 11 | . . . 5 . . 5 . . . . . . 1 . . . . . . . . . . AOE 4 | . . . 1 . . 1 . . . . . . . . . . . . . . . . 2 Classes Destroyed 23 | 2 1 1 2 . . 1 . . . . . 1 2 . 1 . . . . . . 2 10 Worker 1 | . . . . . . . . . . . . . . . . . . . . . . 1 . Tunneler 5 | 5 . . . . . . . . . . . . . . . . . . . . . . . Recycler 2 | 1 . 1 . . . . . . . . . . . . . . . . . . . . . Mechanic 1 | . . . . . . . . . . . . . . . . . . . . . . . 1 Operator 2 | . . . . . . . . . . . . 1 . . . . . . . 1 . . . Drone 8 | . . . . . . . . . . . . . . . . . . . . . . . 8 Watcher 2 | . 1 . . . . . . . . . . . . 1 . . . . . . . . . Swarmer 19 | . . . 2 . . 7 . . . . . . . . . . . . 8 . . . 2 Saboteur 2 | . . . . . . . . . . . . . . . . . . . . . . . 2 Grunt 10 | . . 2 . . . 2 . . . . . . . . . . . . . . . . 6 Brawler 3 | . . . . . . . . . . . . . . . . . . . . . . . 3 Duelist 2 | . . . . . . . . . . . . . . . . . . . . . . . 2 Researcher 1 | . . . . . . . . . . . . . . . . . . . . . . 1 . Specialist 3 | . . . . . . . . . . . . . . . . . . . . . . . 3 Hunter 5 | . . . . . . . . . . . . . . . . . . . . . . . 5 Programmer 8 | . . . . . . . . . . . . . . . 1 . . . . . 2 . 5 Heavy 2 | . . . . . . 1 . . . . . . . . . . . . 1 . . . . Compactor 1 | . . . . . . . . . . . . . 1 . . . . . . . . . . Hotshot 2 | . . . . . . . . . . . . . . . . . . . . . . . 2 Striker 1 | . . . . . . . . . . . . . . . . . . . . . . . 1 Executioner 5 | . . . . . . . . . . . . . . . . . . . . . . . 5 Subdweller 4 | . . . 4 . . . . . . . . . . . . . . . . . . . . Scrapoid 1 | . . . . . . . . . . . . . . . . . . . . . . . 1 Packrat 5 | . . . . . . . . . . . 2 . . . 3 . . . . . . . . Martyr 1 | . . . . . . . . . . . . . 1 . . . . . . . . . . Best Kill Streak 7 | 5 1 2 2 . . 5 . . . . . 1 1 1 1 . . . 4 1 2 1 7 Combat Bots Only 7 | . . 1 2 . . 5 . . . . . . 1 . 1 . . . 4 . 2 . 7 Max Kills in Single Turn 2 | 1 1 1 1 . . 1 . . . . 1 1 1 1 1 . . . 2 1 1 1 2 Gunslinging 1 | . . . . . . . . . . . . . . . . . . . . . . . 1 Exploded 1 | . . . 1 . . 1 . . . . . . . . . . . . . . . . 1 Melee 2 | . . . . . . . . . . . . . . . 1 . . . 2 . 1 . . Uniques/NPCs Destroyed . | . . . . . . . . . . . . . . . . . . . . . . . . Combat | -11 -10 -10 -10 -8 -6 -6 -5 -5 -5 -5 -4 -4 -4 -4 -4 -4 -4 -3 -3 -3 -2 -2 -2 -------- Run | Yrd Mat Min Sub Scr Fac DSF Fac Upp Upp Zhi Pro Fac Was Fac Upp Upp War Pro Res Qua Res Tes Frg Hostile Shots Fired 838 | . . 23 61 . . 84 91 26 2 . 18 26 . 34 8 2 20 9 41 44 43 25 281 Missed 349 | . . 8 16 . . 25 49 14 . . 12 14 . 19 5 1 16 3 20 22 11 10 104 Hits 489 | . . 15 45 . . 59 42 12 2 . 6 12 . 15 3 1 4 6 21 22 32 15 177 Melee 2 | . . . . . . . . . . . . . . . . . . . . . . . 2 Projectile 487 | . . 15 45 . . 59 42 12 2 . 6 12 . 15 3 1 4 6 21 22 32 15 175 Critical Strikes 16 | . . 1 2 . . . . . . . . . . 1 . . 1 . 1 . 1 . 9 Actively Blocked 5 | . . . . . . . . . . . . . . . . . . . 1 . 1 . 3 Damage Taken 12338 | . . 225 1071 . . 1002 964 238 50 . 118 237 13 291 60 22 89 154 633 450 881 283 5557 Core 2210 | . . 65 164 . . 111 131 54 24 . 19 34 . 27 20 22 . 51 45 45 24 . 1374 Absorbed by Shields 124 | . . . . . . . . . . . . . . . . . . . . . . . 124 Redirected to Shielding 119 | . . . . . . . 88 . . . . . . . . . . . . . . . 31 Regen/Repaired (Parts) 482 | . . . . . . . . . . . . . 32 . . . 53 . . 209 150 . 38 Core Remaining (%) 75 | 100 . . . 8 . 86 . . . . 77 . . . . . . 86 . 93 . . . Volleys Fired 300 | 17 4 19 77 2 4 29 2 . . . . . 9 . 2 . . . . 2 . 18 115 Largest 2 | 2 2 2 2 1 1 1 1 . . . . . 1 . 1 . . . . 1 . 1 2 Hottest 300 | 40 40 40 60 5 . 43 60 . . . . . 56 . 94 . . . . 10 . 58 300 Shots Fired 476 | 34 8 38 130 2 4 29 2 . . . . . 8 . 2 . . . . 2 . 18 199 Gun 298 | 34 8 38 25 . . . 1 . . . . . . . 2 . . . . . . . 190 Cannon 133 | . . . 103 . . . 1 . . . . . 8 . . . . . . . . 18 3 Launcher 10 | . . . 2 . . 2 . . . . . . . . . . . . . . . . 6 Special 35 | . . . . 2 4 27 . . . . . . . . . . . . . 2 . . . Kinetic 425 | 34 8 38 128 . . . 1 . . . . . 8 . . . . . . . . 18 190 Thermal 5 | . . . . . . . . . . . . . . . 2 . . . . . . . 3 Explosive 2 | . . . 2 . . . . . . . . . . . . . . . . . . . . Electromagnetic 9 | . . . . . . 2 1 . . . . . . . . . . . . . . . 6 Impact 31 | . . . . . 4 27 . . . . . . . . . . . . . . . . . Robot Hit Streak 48 | 9 2 5 15 12 . 5 . . . . . . 8 . . . . . . 1 . 6 48 Robot Miss Streak 6 | 1 1 3 1 . 2 2 . . . . . . 1 . . . . . . 1 . 1 6 Penetration Max 2 | . . . . . . . . . . . . . . . . . . . . . . . 2 Secondary Targets 13 | . . 1 . . . . . . . . . . . . . . . . . . . . 12 Max Gunslinging Chain 1 | . . 1 . . . . . . . . . . . . . . . . . . . . 1 Shots Hit Robots 340 | 25 4 23 42 2 . 22 . . . . 2 1 8 2 4 . . . 15 2 11 8 169 Core Hits 145 | 9 2 8 11 . . 9 . . . . . . 2 . 3 . . . 9 . 1 3 88 Critical Kills 15 | . . . . . . 1 . . . . . . 1 . . . . . . . . . 13 Critical Parts Destroyed 17 | . . . . . . 3 . . . . . . 1 . . . . . . . . . 13 Critical Strikes 45 | . . . . . . 4 . . . . . 1 2 1 1 . . . 3 . . 2 31 Destroy 33 | . . . . . . . . . . . . . 2 . . . . . . . . . 31 Blast 2 | . . . . . . . . . . . . . . . . . . . . . . 2 . Smash 4 | . . . . . . 4 . . . . . . . . . . . . . . . . . Impale 3 | . . . . . . . . . . . . 1 . 1 1 . . . . . . . . Sunder 3 | . . . . . . . . . . . . . . . . . . . 3 . . . . Melee Attacks 132 | . . . . . . . . . 1 . 2 24 2 16 20 . 5 . 33 17 12 . . Impact 1 | . . . . . . . . . 1 . . . . . . . . . . . . . . Slashing 28 | . . . . . . . . . . . 2 1 . . 2 . 2 . . 9 12 . . Piercing 62 | . . . . . . . . . . . . 23 2 16 18 . 3 . . . . . . Entropic 41 | . . . . . . . . . . . . . . . . . . . 33 8 . . . Sneak Attacks 8 | . . . . . . . . . . . 2 1 1 . 3 . . . . 1 . . . Combat Hostiles . | . . . . . . . . . . . . . . . . . . . . . . . . Follow-up Attacks 1 | . . . . . . . . . . . . . . . . . . . 1 . . . . Damage Inflicted 14736 | 253 46 255 815 . . 1847 . . . . 175 106 217 134 386 . . . 1350 144 809 346 7853 Guns 7659 | 253 46 255 25 . . . . . . . . . . . . . . . . . . . 7080 Cannons 1211 | . . . 730 . . . . . . . . . 135 . . . . . . . . 346 . Explosions 993 | . . . 55 . . 189 . . . . . . . . . . . . . . . . 749 Melee 3185 | . . . . . . . . . . . 175 106 82 133 386 . . . 1350 144 809 . . Ramming 30 | . . . 5 . . . . . . . . . . 1 . . . . . . . . 24 Kinetic 8870 | 253 46 255 755 . . . . . . . . . 135 . . . . . . . . 346 7080 Thermal 118 | . . . . . . . . . . . . . . . . . . . . . . . 118 Explosive 55 | . . . 55 . . . . . . . . . . . . . . . . . . . . Electromagnetic 820 | . . . . . . 189 . . . . . . . . . . . . . . . . 631 Impact 1658 | . . . . . . 1658 . . . . . . . . . . . . . . . . . Slashing 984 | . . . . . . . . . . . 175 . . . . . . . . . 809 . . Piercing 707 | . . . . . . . . . . . . 106 82 133 386 . . . . . . . . Entropic 1494 | . . . . . . . . . . . . . . . . . . . 1350 144 . . . Highest Corruption 16 | . . . . . . 6 . 1 1 1 1 . 15 15 16 16 16 . . . 5 6 10 Average Corruption 8 | . . . . . . 6 . 1 1 1 1 . 10 15 15 16 16 . . . 4 5 6 Corruption Purged 31 | . . . . . . . . . . . . . . . . . . . . . . . 31 Corruption Blocked . | . . . . . . . . . . . . . . . . . . . . . . . . Effects 53 | . . . . . . 1 . . 1 . 2 . 4 6 9 3 . . . . 2 3 22 Message Errors 14 | . . . . . . 1 . . . . 1 . . 2 1 1 . . . . 1 . 7 Matter Fused 8 | . . . . . . . . . . . . . 1 1 3 . . . . . . . 3 Heat Flow Errors 4 | . . . . . . . . . . . . . . 1 1 . . . . . . 1 1 Energy Discharges 9 | . . . . . . . . . 1 . . . 1 . 2 . . . . . . 1 4 Parts Rejected 2 | . . . . . . . . . . . . . . . . . . . . . 1 . 1 Data Loss (minor) 8 | . . . . . . . . . . . 1 . . . 1 1 . . . . . 1 4 Data Loss (major) 3 | . . . . . . . . . . . . . 1 . . 1 . . . . . . 1 Alerts 1 | . . . . . . . . . . . . . . . . . . . . . . . 1 Misdirections 3 | . . . . . . . . . . . . . . 2 1 . . . . . . . . Weapon Failures 1 | . . . . . . . . . . . . . 1 . . . . . . . . . . Overload Shots . | . . . . . . . . . . . . . . . . . . . . . . . . Overflow Damage 1509 | . . . . . . 436 . . . . 141 177 . 86 147 . . . 101 114 260 47 . Projectiles 479 | . . . . . . 432 . . . . . . . . . . . . . . . 47 . Explosions 4 | . . . . . . 4 . . . . . . . . . . . . . . . . . Melee 1026 | . . . . . . . . . . . 141 177 . 86 147 . . . 101 114 260 . . Knockbacks 19 | . . . 9 . . 8 . . . . . . . . . . . . . . . 2 . Impact 8 | . . . . . . 8 . . . . . . . . . . . . . . . . . Kinetic 11 | . . . 9 . . . . . . . . . . . . . . . . . . 2 . Secondary . | . . . . . . . . . . . . . . . . . . . . . . . . Self-Inflicted Damage 39 | . . . 21 . . . . . . . . . . . . . . . . . . . 18 Shots 3 | . . . 2 . . . . . . . . . . . . . . . . . . . 1 Rammed 4 | . . . 2 . . . . . . . . . . 1 . . . . . . . . 1 Targets Rammed 4 | . . . 2 . . . . . . . . . . 1 . . . . . . . . 1 Kicked . | . . . . . . . . . . . . . . . . . . . . . . . . Crushed . | . . . . . . . . . . . . . . . . . . . . . . . . Highest Temperature 282 | . . 37 . . . 44 . . . . . 86 14 171 144 12 150 282 179 29 3 152 124 Average Temperature 50 | . . 14 . . . 24 . . . . . 23 8 123 52 9 10 107 76 22 3 59 69 Received Heat Transfer 1006 | . . 147 204 . . 90 36 18 9 . . 18 . 69 . . 46 9 . 81 45 18 216 Effects 3 | . . . . . . . . . . . . . . . . . . 3 . . . . . Interference 3 | . . . . . . . . . . . . . . . . . . 3 . . . . . Siege Activations . | . . . . . . . . . . . . . . . . . . . . . . . . Martial Activations . | . . . . . . . . . . . . . . . . . . . . . . . . Shielding Activations . | . . . . . . . . . . . . . . . . . . . . . . . . Robots Disrupted . | . . . . . . . . . . . . . . . . . . . . . . . . Combat Hostiles . | . . . . . . . . . . . . . . . . . . . . . . . . Robots Corrupted 7 | . . . . . . 4 . . . . . . . . . . . . . . . . 3 Combat Hostiles 7 | . . . . . . 4 . . . . . . . . . . . . . . . . 3 Parts Fried 17 | . . . . . . 6 . . . . . . . . . . . . . . . . 11 Impact Corruptions 12 | . . . . . . 12 . . . . . . . . . . . . . . . . . Robots Melted . | . . . . . . . . . . . . . . . . . . . . . . . . Combat Hostiles . | . . . . . . . . . . . . . . . . . . . . . . . . Parts Melted 2 | . . . 1 . . . . . . . . . . . . . . . . . . . 1 Heat Transferred 100 | . . . . . . . . . . . . . . . . . . . . . . . 100 Parts Sabotaged 3 | . . . . . . . . . . . . . . . . . . . . . . . 3 Parts Stolen . | . . . . . . . . . . . . . . . . . . . . . . . . Parts Stripped . | . . . . . . . . . . . . . . . . . . . . . . . . Power Chain Reactions 3 | . . . . . . . . . . . . . . . . . . . . . . . 3 Alert | -11 -10 -10 -10 -8 -6 -6 -5 -5 -5 -5 -4 -4 -4 -4 -4 -4 -4 -3 -3 -3 -2 -2 -2 ------- Run | Yrd Mat Min Sub Scr Fac DSF Fac Upp Upp Zhi Pro Fac Was Fac Upp Upp War Pro Res Qua Res Tes Frg Maximum Alert Level 4 | . . . . . . 1 2 . . . . . . 2 . . . . 1 2 2 3 4 Low Security (%) 43 | 100 100 100 . . 100 53 53 . . . . 100 100 66 . . . . 81 24 . . . Level 1 13 | . . . . . . 46 44 . . . . . . 31 . . . . 18 32 87 28 . Level 2 12 | . . . . . . . 2 . . . . . . 2 . . . . . 42 12 53 20 Level 3 23 | . . . . . . . . . . . . . . . . . . . . . . 18 62 Level 4 6 | . . . . . . . . . . . . . . . . . . . . . . . 16 Level 5 . | . . . . . . . . . . . . . . . . . . . . . . . . High Security . | . . . . . . . . . . . . . . . . . . . . . . . . Max Security . | . . . . . . . . . . . . . . . . . . . . . . . . Sterilizations 1 | . . . . . . 1 . . . . . . . . . . . . . . . . . Peak Influence 1489 | 10 7 35 . . 15 260 494 . . . . 76 38 407 . . . . 301 519 578 829 1489 Initial 460 | . . . . . . . 136 . . . . 21 18 . . . . . . 168 258 324 460 Average 443 | 1 . 3 . . 5 132 212 . . . . 45 8 211 . . . . 83 337 369 541 958 Influence Increases 5910 | 30 11 55 130 . 17 300 575 . 15 . 45 182 72 577 30 15 . 45 459 553 400 615 1784 Destroy 0b10 Robot/C 1360 | . . 40 40 . . 200 . . . . . . . 100 20 . . . 180 . 40 20 720 Destroy 0b10 Robot/NC 110 | 30 5 5 . . . . . . . . . 5 . 10 . . . . . 5 . 5 45 Destroy Leader 194 | . 2 10 . . . 20 . . . . . . . 12 10 . . . 30 . 10 . 100 Successful Hack 225 | . 4 . . . . . 73 . . . . 28 . 30 . . . . . 36 . 40 14 Disable Machine 270 | . . . . . 15 . . . . . . 45 . . . . . . 45 75 . 45 45 Anti-Garrison Action 750 | . . . . . . . 200 . . . . . . 200 . . . . . . . 200 150 Destroy Structure 461 | . . . . . 2 5 2 . . . . 14 72 30 . . . . 14 22 . 15 285 Partial Spotted 315 | . . . . . . . 105 . . . . 45 . 15 . . . . 45 75 15 15 . Lose Combat Pursuer 1425 | . . . 90 . . 75 195 . 15 . 45 45 . 180 . 15 . 45 45 240 135 75 225 Active Sensor Use 800 | . . . . . . . . . . . . . . . . . . . 100 100 200 200 200 Influence Decreases 4406 | 30 11 55 77 53 17 40 444 186 80 140 10 164 125 200 271 67 84 45 158 393 283 374 1099 Entered New Map 1753 | . . . . 53 . . 124 146 40 140 . 14 35 . 141 27 84 . . 133 203 254 359 Time Decay 1861 | 30 11 45 37 . 17 . 170 40 40 . 10 150 46 80 130 40 . 35 90 140 60 110 580 Search Patrol Dispatched 200 | . . . . . . . 100 . . . . . . . . . . . . 100 . . . Lost Part 438 | . . 10 40 . . 40 50 . . . . . . 20 . . . 10 68 10 20 10 160 Lost Ally 154 | . . . . . . . . . . . . . 44 100 . . . . . 10 . . . Squads Dispatched 59 | . . . . . . 1 9 . . . . 10 . 9 . . . . 6 4 4 8 8 Investigation 38 | . . . . . . . 6 . . . . 7 . 7 . . . . 3 2 3 4 6 Extermination 8 | . . . . . . . 2 . . . . 1 . . . . . . 1 1 1 2 . Reinforcement 12 | . . . . . . 1 1 . . . . 2 . 2 . . . . 2 1 . 1 2 Assault 1 | . . . . . . . . . . . . . . . . . . . . . . 1 . Garrison . | . . . . . . . . . . . . . . . . . . . . . . . . Intercept . | . . . . . . . . . . . . . . . . . . . . . . . . Searches Triggered 2 | . . . . . . . 1 . . . . . . . . . . . . 1 . . . Construction Impeded . | . . . . . . . . . . . . . . . . . . . . . . . . Haulers Reinforced . | . . . . . . . . . . . . . . . . . . . . . . . . Active Scanning Responses 8 | . . . . . . . . . . . . . . . . . . . 1 1 2 2 2 Cargo Convoy Interrupts . | . . . . . . . . . . . . . . . . . . . . . . . . Stealth | -11 -10 -10 -10 -8 -6 -6 -5 -5 -5 -5 -4 -4 -4 -4 -4 -4 -4 -3 -3 -3 -2 -2 -2 --------- Run | Yrd Mat Min Sub Scr Fac DSF Fac Upp Upp Zhi Pro Fac Was Fac Upp Upp War Pro Res Qua Res Tes Frg Distress Signals 19 | . . . . . . . 2 . . . . . . 1 . . . . 1 1 1 1 12 Communications Jammed 39 | . . . . . . . 19 . . . . 14 . 1 . . . . . . . 5 . Distress Signals 39 | . . . . . . . 19 . . . . 14 . 1 . . . . . . . 5 . Times Spotted 359 | . 3 2 11 . 1 16 33 8 1 . 3 11 7 22 2 1 19 9 17 30 20 12 131 Peak Tracking Total 20 | . 1 2 4 . 1 4 12 6 1 . 3 6 3 16 1 1 20 7 7 12 11 8 12 Tactical Retreats 42 | . . . 2 . . 3 5 . 1 . 2 4 1 2 . 1 . 2 1 6 2 2 8 ECM-based Alert Blocks 4 | . . . . . . . . . . . . 4 . . . . . . . . . . . Traps | -11 -10 -10 -10 -8 -6 -6 -5 -5 -5 -5 -4 -4 -4 -4 -4 -4 -4 -3 -3 -3 -2 -2 -2 ------- Run | Yrd Mat Min Sub Scr Fac DSF Fac Upp Upp Zhi Pro Fac Was Fac Upp Upp War Pro Res Qua Res Tes Frg Traps Triggered 12 | . . . 3 . . 1 . . . . . 2 . . . . . . . 2 . 1 3 Indirectly . | . . . . . . . . . . . . . . . . . . . . . . . . Trap Hack Attempts . | . . . . . . . . . . . . . . . . . . . . . . . . Triggered . | . . . . . . . . . . . . . . . . . . . . . . . . Disarmed . | . . . . . . . . . . . . . . . . . . . . . . . . Reprogrammed . | . . . . . . . . . . . . . . . . . . . . . . . . Reused . | . . . . . . . . . . . . . . . . . . . . . . . . Traps Extracted . | . . . . . . . . . . . . . . . . . . . . . . . . Installed . | . . . . . . . . . . . . . . . . . . . . . . . . Triggered . | . . . . . . . . . . . . . . . . . . . . . . . . Most Traps Carried 1 | . . . . 1 1 1 . . . . . . . . . . . . . . . . . Machines | -11 -10 -10 -10 -8 -6 -6 -5 -5 -5 -5 -4 -4 -4 -4 -4 -4 -4 -3 -3 -3 -2 -2 -2 ---------- Run | Yrd Mat Min Sub Scr Fac DSF Fac Upp Upp Zhi Pro Fac Was Fac Upp Upp War Pro Res Qua Res Tes Frg Machines Disabled 22 | . . . 1 . 1 . . . . . . 3 . . . . 1 . 3 5 . 4 4 Max in Single Turn 1 | . . . 1 . 1 . . . . . . 1 . . . . 1 . 1 1 . 1 1 Garrison Access 4 | . . . . . . . 1 . . . . . . 1 . . . . . . . 1 1 Machines Repaired . | . . . . . . . . . . . . . . . . . . . . . . . . Machines Dismantled . | . . . . . . . . . . . . . . . . . . . . . . . . Machines Sabotaged . | . . . . . . . . . . . . . . . . . . . . . . . . Overloaded Fab Kills . | . . . . . . . . . . . . . . . . . . . . . . . . Hacking | -11 -10 -10 -10 -8 -6 -6 -5 -5 -5 -5 -4 -4 -4 -4 -4 -4 -4 -3 -3 -3 -2 -2 -2 --------- Run | Yrd Mat Min Sub Scr Fac DSF Fac Upp Upp Zhi Pro Fac Was Fac Upp Upp War Pro Res Qua Res Tes Frg Machines Accessed 86 | . 2 . 2 2 2 . 12 . . 4 . 13 . 11 2 1 5 . 5 12 1 7 5 Terminals 36 | . 2 . . . 1 . 6 . . . . 5 . 3 . . . . 3 9 . 5 2 Fabricators 5 | . . . . . 1 . 2 . . . . 1 . . . . . . . . . 1 . Repair Stations . | . . . . . . . . . . . . . . . . . . . . . . . . Recycling Units 20 | . . . . . . . 3 . . . . 6 . 5 . . . . 2 . 1 . 3 Scanalyzers 5 | . . . . . . . . . . . . 1 . 2 . . . . . 2 . . . Garrison Access 4 | . . . . . . . 1 . . . . . . 1 . . . . . 1 . 1 . Total Hacks 209 | . 6 . 5 4 3 . 33 . . 17 . 29 . 29 7 1 7 . 9 22 1 21 15 Successful 99 | . 2 . 5 4 1 . 11 . . 17 . 11 . 16 7 1 7 . 2 6 1 5 3 Failed 109 | . 4 . . . 2 . 22 . . . . 18 . 13 . . . . 7 15 . 16 12 Catastrophic 23 | . . . . . 1 . 5 . . . . 5 . 1 . . . . 2 3 . 4 2 Database Lockouts 1 | . . . . . . . . . . . . . . . . . . . . 1 . . . Manual 87 | . 6 . . . . . 24 . . . . 20 . 15 . . . . 2 4 1 8 7 Terminals 99 | . 6 . . . 2 . 21 . . . . 13 . 11 . . . . 7 17 . 14 8 Fabricators 9 | . . . . . 1 . 2 . . . . 2 . . . . . . . . . 4 . Repair Stations . | . . . . . . . . . . . . . . . . . . . . . . . . Recycling Units 37 | . . . . . . . 7 . . . . 12 . 8 . . . . 2 . 1 . 7 Scanalyzers 12 | . . . . . . . . . . . . 2 . 7 . . . . . 3 . . . Garrison Access 11 | . . . . . . . 3 . . . . . . 3 . . . . . 2 . 3 . Terminal Hacks 62 | . . . 5 4 1 . 6 . . 17 . 3 . 3 7 1 7 . . 3 . 3 2 Record 24 | . . . 4 3 . . . . . 5 . . . . 6 . 5 . . . . 1 . Part Schematic 4 | . . . . . . . . . . 4 . . . . . . . . . . . . . Robot Analysis 4 | . . . . . . . . . . 4 . . . . . . . . . . . . . Prototype ID Bank 4 | . . . . . . . . . . 4 . . . . . . . . . . . . . Open Door 4 | . . . . . . . . . . . . . . . 1 1 2 . . . . . . Open DSF 1 | . . . . . 1 . . . . . . . . . . . . . . . . . . Branch Access Points 3 | . . . . . . . 1 . . . . 1 . 1 . . . . . . . . . Emergency Access Points 1 | . . . . . . . . . . . . . . . . . . . . 1 . . . Terminal Index 1 | . . . . . . . 1 . . . . . . . . . . . . . . . . Recycling Unit Index 3 | . . . . . . . 1 . . . . 1 . 1 . . . . . . . . . Locate Traps 2 | . . . . . . . 1 . . . . 1 . . . . . . . . . . . Dispatch Records 1 | . . . . . . . . . . . . . . . . . . . . 1 . . . Recall Investigation 1 | . . . . . . . . . . . . . . . . . . . . . . . 1 Hauler Manifests 1 | . . . . . . . 1 . . . . . . . . . . . . . . . . Registered Components 2 | . . . . . . . 1 . . . . . . 1 . . . . . . . . . Zone Layout 2 | . . . . . . . . . . . . . . . . . . . . 1 . . 1 Proto ID Catalog 2 | . . . 1 1 . . . . . . . . . . . . . . . . . . . Protovariant Controls 2 | . . . . . . . . . . . . . . . . . . . . . . 2 . Fabricator Hacks 2 | . . . . . . . 1 . . . . . . . . . . . . . . 1 . Network Status 1 | . . . . . . . 1 . . . . . . . . . . . . . . . . Build 1 | . . . . . . . . . . . . . . . . . . . . . . 1 . Repair Station Hacks . | . . . . . . . . . . . . . . . . . . . . . . . . Recycling Unit Hacks . | . . . . . . . . . . . . . . . . . . . . . . . . Scanalyzer 9 | . . . . . . . . . . . . 1 . 6 . . . . . 2 . . . Insert Component 2 | . . . . . . . . . . . . . . 1 . . . . . 1 . . . Retrieve Study 7 | . . . . . . . . . . . . 1 . 5 . . . . . 1 . . . Garrison Access Hacks . | . . . . . . . . . . . . . . . . . . . . . . . . Unauthorized Hacks 26 | . 2 . . . . . 4 . . . . 7 . 7 . . . . 2 1 1 1 1 Terminals 7 | . 2 . . . . . 1 . . . . 2 . 1 . . . . . 1 . . . Assimilate 3 | . . . . . . . . . . . . 1 . 1 . . . . . 1 . . . Botnet 2 | . . . . . . . 1 . . . . 1 . . . . . . . . . . . Skim 2 | . 2 . . . . . . . . . . . . . . . . . . . . . . Fabricators . | . . . . . . . . . . . . . . . . . . . . . . . . Repair Stations . | . . . . . . . . . . . . . . . . . . . . . . . . Recycling Units 16 | . . . . . . . 2 . . . . 5 . 5 . . . . 2 . 1 . 1 Fedlink 16 | . . . . . . . 2 . . . . 5 . 5 . . . . 2 . 1 . 1 Scanalyzers . | . . . . . . . . . . . . . . . . . . . . . . . . Garrison Access 3 | . . . . . . . 1 . . . . . . 1 . . . . . . . 1 . Jam 3 | . . . . . . . 1 . . . . . . 1 . . . . . . . 1 . Data Cores Recovered 1 | . . . . . . . . . . . . . . . . . . . . 1 . . . Used . | . . . . . . . . . . . . . . . . . . . . . . . . Hacking Detections 48 | . 2 . . . 2 . 9 . . . . 8 . 4 . . . . 3 10 . 6 4 Full Trace Events 9 | . . . . . . . 2 . . . . 2 . 1 . . . . . 1 . 1 2 Feedback Events . | . . . . . . . . . . . . . . . . . . . . . . . . Feedback Blocked . | . . . . . . . . . . . . . . . . . . . . . . . . Robot Schematics Acquired 1 | . . . . . . . . . . . . . . . . . . . . . . 1 . Robots Built . | . . . . . . . . . . . . . . . . . . . . . . . . Authchips . | . . . . . . . . . . . . . . . . . . . . . . . . Time . | . . . . . . . . . . . . . . . . . . . . . . . . Total Robot Build Rating . | . . . . . . . . . . . . . . . . . . . . . . . . Part Schematics Acquired 6 | . . . . . . . . . . 4 . . . . . . . . . . . 2 . Parts Built 1 | . . . . . . . . . . . . . . . . . . . . . . 1 . Authchips . | . . . . . . . . . . . . . . . . . . . . . . . . Time 111 | . . . . . . . . . . . . . . . . . . . . . . 111 . Total Part Build Rating 9 | . . . . . . . . . . . . . . . . . . . . . . 9 . Part Studies Acquired 6 | . . . . . . . . . . . . 1 . 4 . . . . . 1 . . . Parts Repaired . | . . . . . . . . . . . . . . . . . . . . . . . . Time . | . . . . . . . . . . . . . . . . . . . . . . . . Parts Recycled . | . . . . . . . . . . . . . . . . . . . . . . . . Recycled Matter . | . . . . . . . . . . . . . . . . . . . . . . . . Retrieved Matter . | . . . . . . . . . . . . . . . . . . . . . . . . Retrieved Components . | . . . . . . . . . . . . . . . . . . . . . . . . Parts Scanalyzed . | . . . . . . . . . . . . . . . . . . . . . . . . Part Schematics Acquired . | . . . . . . . . . . . . . . . . . . . . . . . . Parts Damaged . | . . . . . . . . . . . . . . . . . . . . . . . . Bothacking | -11 -10 -10 -10 -8 -6 -6 -5 -5 -5 -5 -4 -4 -4 -4 -4 -4 -4 -3 -3 -3 -2 -2 -2 ------------ Run | Yrd Mat Min Sub Scr Fac DSF Fac Upp Upp Zhi Pro Fac Was Fac Upp Upp War Pro Res Qua Res Tes Frg Used RIF Installer . | . . . . . . . . . . . . . . . . . . . . . . . . Robots Hacked 3 | . . . . 2 . . . . . . . . . . . . . . . 1 . . . Non-combat . | . . . . . . . . . . . . . . . . . . . . . . . . Combat 2 | . . . . 2 . . . . . . . . . . . . . . . . . . . Robot Hacks Applied 2 | . . . . 2 . . . . . . . . . . . . . . . . . . . parse_system 2 | . . . . 2 . . . . . . . . . . . . . . . . . . . Manual 1 | . . . . . . . . . . . . . . . . . . . . 1 . . . Relay Couplers Released 1 | . . . . . . . . . . . . . . . . . . . . . . . 1 Machine Destruction 1 | . . . . . . . . . . . . . . . . . . . . . . . 1 Fabnet Peak Effective % . | . . . . . . . . . . . . . . . . . . . . . . . . Robots Rewired . | . . . . . . . . . . . . . . . . . . . . . . . . Allies Hacked . | . . . . . . . . . . . . . . . . . . . . . . . . Hacks Repelled . | . . . . . . . . . . . . . . . . . . . . . . . . Allies | -11 -10 -10 -10 -8 -6 -6 -5 -5 -5 -5 -4 -4 -4 -4 -4 -4 -4 -3 -3 -3 -2 -2 -2 -------- Run | Yrd Mat Min Sub Scr Fac DSF Fac Upp Upp Zhi Pro Fac Was Fac Upp Upp War Pro Res Qua Res Tes Frg Total Allies 20 | . . . . . . . . . . . . . 18 1 . . . . . 1 . . . Largest Group 18 | . . . . . . . . . . . . . 18 5 . . . . . . . . . Highest-Rated Group 656 | . . . . . . . . . . . . . 656 211 . . . . . . . . . Highest-Rated Ally 50 | . . . . . . . . . . . . . 50 46 . . . . . . . . . Initial UFD Resources 104 | . . . . . 24 24 28 42 42 42 44 44 64 64 74 74 74 77 77 91 94 104 104 Total Orders . | . . . . . . . . . . . . . . . . . . . . . . . . Ally Attacks 127 | . . . . . . . . . . . . . 106 21 . . . . . . . . . Total Damage 7351 | . . . . . . . . . . . . . 6880 471 . . . . . . . . . Kills 19 | . . . . . . . . . . . . . 13 6 . . . . . . . . . Allies Corrupted . | . . . . . . . . . . . . . . . . . . . . . . . . Allies Melted 3 | . . . . . . . . . . . . . . . . . . . . . . . 3 Intel | -11 -10 -10 -10 -8 -6 -6 -5 -5 -5 -5 -4 -4 -4 -4 -4 -4 -4 -3 -3 -3 -2 -2 -2 ------- Run | Yrd Mat Min Sub Scr Fac DSF Fac Upp Upp Zhi Pro Fac Was Fac Upp Upp War Pro Res Qua Res Tes Frg Active Infowar (turns) 6772 | 45 224 560 74 1090 66 189 357 82 83 67 98 317 129 169 277 84 296 154 203 291 138 222 1557 Optics 3359 | . . . . . . . . . . . . . . 137 277 84 296 154 203 291 138 222 1557 Sensors 1484 | . . . . . . . . . . . . 282 129 169 277 84 296 139 108 . . . . A.S.S. 798 | . . . . . . . . . . . . . . . . . . . 92 291 138 222 55 Seismic 2371 | 45 224 560 74 1090 66 189 123 . . . . . . . . . . . . . . . . Machine Analysis 3018 | . . . . . . . 234 82 83 67 98 317 129 169 277 84 296 139 203 291 138 222 189 Cloaking 740 | . . . . . . . . . . . . . . . 226 84 188 139 103 . . . . Jamming 1315 | . . . . . . . 264 82 83 67 98 316 20 101 . . . . . . 7 222 55 ECM 130 | . . . . . . . . . . . . 110 20 . . . . . . . . . . Robot Analysis Total 4 | . . . . . . . . . . 4 . . . . . . . . . . . . . Derelict Logs Recovered 4 | . . 1 . . . . . . 1 . 1 . . . . 1 . . . . . . . Drone Launches . | . . . . . . . . . . . . . . . . . . . . . . . . Drone Recoveries . | . . . . . . . . . . . . . . . . . . . . . . . . Exploration | -11 -10 -10 -10 -8 -6 -6 -5 -5 -5 -5 -4 -4 -4 -4 -4 -4 -4 -3 -3 -3 -2 -2 -2 ------------- Run | Yrd Mat Min Sub Scr Fac DSF Fac Upp Upp Zhi Pro Fac Was Fac Upp Upp War Pro Res Qua Res Tes Frg Turns Passed 9687 | 132 224 560 2205 1429 66 310 357 82 83 67 98 317 129 169 277 84 296 154 203 291 138 222 1794 Spaces Moved 13291 | 87 178 453 1188 1877 48 191 924 229 220 135 237 668 222 454 650 319 776 248 441 1060 366 716 1604 Core 183 | 31 . . 3 122 . . . . . . . . . . . . . . . . . . 27 Treads 1188 | 2 . 1 1185 . . . . . . . . . . . . . . . . . . . . Legs . | . . . . . . . . . . . . . . . . . . . . . . . . Wheels 3168 | 54 178 452 . 1008 48 99 . . . . . . . . . . . . . . . . 1329 Hover . | . . . . . . . . . . . . . . . . . . . . . . . . Flight 8752 | . . . . 747 . 92 924 229 220 135 237 668 222 454 650 319 776 248 441 1060 366 716 248 Fastest Speed 6 | 50 80 110 50 35 115 34 34 35 35 35 35 21 24 23 19 19 6 6 13 20 22 18 22 Average Speed 55 | 74 102 110 159 73 115 83 34 35 35 37 38 29 24 23 25 25 21 51 20 21 25 21 68 Slowest Speed 165 | 160 110 160 160 115 115 165 35 35 35 115 39 39 24 26 26 26 26 96 96 25 28 25 109 Overloaded Moves 424 | . . . . . . . . . . . . 27 . . 8 11 13 129 63 79 18 76 . Propulsion Burnouts . | . . . . . . . . . . . . . . . . . . . . . . . . Robots Hopped 69 | . . . . . . . 18 2 . . 1 5 . 5 . . 3 1 1 8 12 11 2 Potential Cave-ins 27 | . . . . . . . . . . . . . . . . . . . . . . . 27 Cave-ins Triggered 1 | . . . . . . . . . . . . . . . . . . . . . . . 1 Exploration Rate (%) 51 | 3 20 88 66 85 2 92 33 42 42 60 43 20 85 17 71 65 94 48 15 96 21 76 45 Regions Visited 23 Branch Regions 14 Pre-discovered Areas 10 | . . 1 1 . . . 1 . . 3 . . . . 3 . 1 . . . . . . Known Exits Taken 13 | . . . . . 1 . 1 1 1 . . . . 1 1 1 1 1 1 1 1 1 . Unknown Exits Taken 7 | 1 1 1 1 1 . . . . . 1 1 . . . . . . . . . . . . Scrap Searched 19 | . . 1 3 5 . . . 1 4 . 2 . . . . 3 . . . . . . . Spaces Dug 90 | . . . 16 . . . 1 . 1 . . 7 1 14 13 . . . 7 11 . 3 16 Terrain Destroyed 186 | . . . 16 . 2 5 1 . 1 . . 7 2 14 13 . . . 7 11 . 6 101 Melee 53 | . . . . . . . . . 1 . . 7 1 14 12 . . . 7 11 . . . Projectile 90 | . . . . . 2 5 1 . . . . . 1 . 1 . . . . . . 6 74 AOE 43 | . . . 16 . . . . . . . . . . . . . . . . . . . 27 Terrain Rammed . | . . . . . . . . . . . . . . . . . . . . . . . . Walls Destroyed . | . . . . . . . . . . . . . . . . . . . . . . . . Machines Disabled . | . . . . . . . . . . . . . . . . . . . . . . . . Actions | -11 -10 -10 -10 -8 -6 -6 -5 -5 -5 -5 -4 -4 -4 -4 -4 -4 -4 -3 -3 -3 -2 -2 -2 --------- Run | Yrd Mat Min Sub Scr Fac DSF Fac Upp Upp Zhi Pro Fac Was Fac Upp Upp War Pro Res Qua Res Tes Frg Total 14860 | 124 213 481 1366 1931 54 322 947 229 223 152 240 748 284 478 717 320 894 273 528 1104 380 751 2101 Wait 632 | . 24 3 56 5 . 42 1 . . . . 3 46 4 33 . 98 26 21 2 8 3 257 Move 13139 | 86 177 452 1187 1876 47 190 889 224 219 134 234 658 221 445 649 318 770 245 438 1044 342 695 1599 Hop 61 | . . . . . . . 16 2 . . 1 5 . 4 . . 2 1 1 7 11 9 2 Pick Up 122 | 11 6 4 9 19 2 16 10 . 2 4 . 11 1 1 4 1 1 . 5 4 . . 11 Fast Attach 127 | 1 . . 1 5 . 4 9 . . 2 1 17 1 1 1 . 10 . 10 7 5 15 37 Attach 69 | 7 1 2 5 7 1 14 7 1 1 5 . 2 . 1 1 . . . 8 2 . . 4 Detach 14 | 1 . . 1 2 . 2 . . . 2 1 . . 1 . . . . 2 1 . . 1 Swap 37 | . . . 5 5 . 1 . . . 1 . 7 1 2 5 . . 1 2 3 . . 4 Drop 183 | 1 1 1 19 10 . 24 13 2 . 4 1 21 3 3 4 1 10 . 10 15 2 11 27 Fire 300 | 17 4 19 77 2 4 29 2 . . . . . 9 . 2 . . . . 2 . 18 115 Melee 126 | . . . . . . . . . 1 . 2 24 2 16 18 . 3 . 31 17 12 . . Ram 1 | . . . . . . . . . . . . . . . . . . . . . . . 1 Kick . | . . . . . . . . . . . . . . . . . . . . . . . . Crush 2 | . . . 2 . . . . . . . . . . . . . . . . . . . . Escape Stasis 23 | . . . . . . . . . . . . . . . . . . . . . . . 23 Rewire . | . . . . . . . . . . . . . . . . . . . . . . . . Trap . | . . . . . . . . . . . . . . . . . . . . . . . . Miscellaneous 24 | . . . 4 . . . . . . . . . . . . . . . . . . . 20 Route ------- -11/Scrapyard -10/Materials -10/Mines (discovered 3 exits: [*Mat x2] / *Sub) -10/Subcaves -8/Scraptown (discovered 2 exits: *Fac x2) -6/Factory -6/DSF -5/Factory (discovered 2 exits: *Upp x2) -5/Upper Caves -5/Upper Caves -5/Zhirov -4/Proximity Caves -4/Factory (discovered 6 exits: *Res x2 / Upp x2 / Ext x2) -4/Waste -4/Factory (discovered 5 exits: *Res / *Upp x2 / Ext x2) -4/Upper Caves -4/Upper Caves -4/Warlord -3/Proximity Caves -3/Research (discovered 2 exits: Arm / *Qua) -3/Quarantine -2/Research -2/Testing (discovered 2 exits: *Sec / *Frg) -2/Protoforge History --------- Turn | Location | Event 3 | -11/Scrapyard | Discovered new exit (range 15) 133 | -11/Scrapyard | Entered Materials 159 | -10/Materials | Discovered new exit (range 13) 312 | -10/Materials | Build established: Mutant 357 | -10/Materials | Entered Mines 387 | -10/Mines | Learned location of Storage (-8) 499 | -10/Mines | Discovered new exit (range 5) 544 | -10/Mines | Received a Rocket Launcher from a helpful Derelict 594 | -10/Mines | Discovered new exit (range 7) 906 | -10/Mines | Discovered new exit (range 11) 917 | -10/Mines | Entered Subcaves 918 | -10/Subcaves | Approached by a straggling Scientist 941 | -10/Subcaves | Shifting Twisted Machinery released Riot Gun 946 | -10/Subcaves | Learned location of Zion (-7) 946 | -10/Subcaves | Met a Zionite searching for "candidates" 947 | -10/Subcaves | Shifting Twisted Machinery released Sub. Optics 977 | -10/Subcaves | Shifting Twisted Machinery released Scrap Shield 1225 | -10/Subcaves | Shifting Twisted Machinery released Sub. Power Source 1556 | -10/Subcaves | Visited 4L-MR0's lab 1590 | -10/Subcaves | Found Gun Armor 1705 | -10/Subcaves | A swath of the cavern ceiling suddenly collapsed 2654 | -10/Subcaves | Visited Clippyterm 2659 | -10/Subcaves | Learned Research machine intel 2670 | -10/Subcaves | A swath of the cavern ceiling suddenly collapsed 2744 | -10/Subcaves | Shifting Twisted Machinery released Sub. Power Source 2747 | -10/Subcaves | Shifting Twisted Machinery released Flamer 3010 | -10/Subcaves | Core integrity fell below 50% 3027 | -10/Subcaves | Scientist uncovered a shortcut to Scraptown 3118 | -10/Subcaves | Core integrity fell below 20% 3122 | -10/Subcaves | Entered Scraptown 3146 | -8/Scraptown | Visited Symbiants 3152 | -8/Scraptown | Lost 3 parts (2n1w) 3152 | -8/Scraptown | Visited Supply Room 3175 | -8/Scraptown | Discovered new exit (range 13) 3273 | -8/Scraptown | Visited Supply Room 3276 | -8/Scraptown | Visited Spacefarers 3288 | -8/Scraptown | Visited Awakened 3294 | -8/Scraptown | Visited UFD Registry 3294 | -8/Scraptown | Registered with UFD as "Hardshell" 3305 | -8/Scraptown | Visited Observation Area 3310 | -8/Scraptown | Visited Scrapoid Pod Storage 3314 | -8/Scraptown | Visited Abandonware Association 3318 | -8/Scraptown | Learned abandonware demo "POISON.EXE" 3325 | -8/Scraptown | Visited Junk Cannon Lab 3330 | -8/Scraptown | Visited Research Penetration Think Tank 3337 | -8/Scraptown | Visited Scrap Suit Storage 3340 | -8/Scraptown | Visited Curators Association 3353 | -8/Scraptown | Visited Chapter 10 3358 | -8/Scraptown | Visited Science Guys 3370 | -8/Scraptown | Visited Botcube Research 3949 | -8/Scraptown | Found Prototype Special Weapon 4026 | -8/Scraptown | Found Lrg. Botcube 4198 | -8/Scraptown | Found Scrapoid Pod 4250 | -8/Scraptown | Found Scrap Suit 4405 | -8/Scraptown | Identified Junk Cannon 4488 | -8/Scraptown | Met Optimus 4488 | -8/Scraptown | Accepted into 0bPrime 4549 | -8/Scraptown | Discovered new exit (range 3) 4551 | -8/Scraptown | Entered Factory 4551 | -6/Factory | Evolved 8 slots: Propulsion x4, Utility x4 4617 | -6/Factory | Identified exit to DSF 4617 | -6/Factory | Entered DSF 4635 | -6/DSF | Additional patrols routed to DSF 4804 | -6/DSF | Discovered new exit (range 15) 4856 | -6/DSF | Sterilization system engaged 4867 | -6/DSF | Lost 3 parts (1p2n) 4876 | -6/DSF | Ambient heat levels rising (+10) 4891 | -6/DSF | Ambient heat levels rising (+10) 4901 | -6/DSF | Found Launcher Loader 4906 | -6/DSF | Ambient heat levels rising (+10) 4921 | -6/DSF | Ambient heat levels rising (+10) 4927 | -6/DSF | Identified exit to Factory 4927 | -6/DSF | Entered Factory 4927 | -5/Factory | Evolved 2 slots: Power x1, Utility x1 5088 | -5/Factory | Identified exit to Upper Caves 5151 | -5/Factory | Noticed UFD Elites at a Recycling Unit 5227 | -5/Factory | Search patrols dispatched 5232 | -5/Factory | Loaded intel: 8 recycling unit locations 5271 | -5/Factory | Learned location of Protoforge (-2) 5284 | -5/Factory | Entered Upper Caves 5317 | -5/Upper Caves | Attracted the attention of an 0b10 checkpoint 5348 | -5/Upper Caves | Encountered a Warlord checkpoint 5363 | -5/Upper Caves | Discovered new exit (range 11) 5366 | -5/Upper Caves | Identified exit to Upper Caves 5366 | -5/Upper Caves | Entered another Upper Caves area 5368 | -5/Upper Caves | Attracted the attention of an 0b10 checkpoint 5416 | -5/Upper Caves | Learned location of 1 exit from Factory 5428 | -5/Upper Caves | Discovered new exit (range 12) 5432 | -5/Upper Caves | Identified exit to Zhirov 5449 | -5/Upper Caves | Entered Zhirov 5449 | -5/Zhirov | Discovered new exit (range 3) 5456 | -5/Zhirov | Met Zhirov 5462 | -5/Zhirov | Learned location of Quarantine (-3) 5462 | -5/Zhirov | Learned location of Testing (-2) 5462 | -5/Zhirov | Learned location of Command (-1) 5466 | -5/Zhirov | Zhirov requested help retrieving the SGEMP Prototype 5471 | -5/Zhirov | Found Alien Artifact 5472 | -5/Zhirov | Identified Integrated Dissipator 5472 | -5/Zhirov | Installed Integrated Dissipator, increased core heat dissipation (+20) 5480 | -5/Zhirov | Found Alien Artifact 5516 | -5/Zhirov | Entered Proximity Caves 5518 | -4/Proximity Caves | Attracted the attention of an 0b10 outpost 5591 | -4/Proximity Caves | Learned Research terminal intel 5613 | -4/Proximity Caves | Discovered new exit (range 2) 5614 | -4/Proximity Caves | Entered Factory 5614 | -4/Factory | Evolved 2 slots: Propulsion x1, Utility x1 5615 | -4/Factory | Identified exit to Research 5660 | -4/Factory | Discovered exit to Research (range 9) 5726 | -4/Factory | Loaded intel: 8 recycling unit locations 5908 | -4/Factory | Identified exit to Upper Caves 5908 | -4/Factory | Identified exit to Extension 5923 | -4/Factory | Build established: Hacker-Ninja 5931 | -4/Factory | Manually triggered Chute Trap 5931 | -4/Factory | Sucked down chute 5931 | -4/Factory | Entered Waste 5934 | -4/Waste | Spotted C-40 Crusher 5935 | -4/Waste | Spotted C-40 Crusher 5938 | -4/Waste | Spotted C-40 Crusher 5939 | -4/Waste | Spotted C-40 Crusher 5946 | -4/Waste | EMP discharged 5946 | -4/Waste | System corruption reached 10% 5946 | -4/Waste | Spotted C-40 Crusher 5951 | -4/Waste | Discovered new exit (range 11) 5951 | -4/Waste | Spotted C-40 Crusher 5956 | -4/Waste | Met Warlord forces unprepared to attack 5978 | -4/Waste | Allies destroyed C-40 Crusher 5987 | -4/Waste | Allies destroyed C-40 Crusher 5990 | -4/Waste | Allies destroyed C-40 Crusher 5991 | -4/Waste | Destroyed C-40 Crusher 6017 | -4/Waste | Allies destroyed C-40 Crusher 6025 | -4/Waste | Allies destroyed C-40 Crusher 6044 | -4/Waste | Identified exit to Factory 6046 | -4/Waste | EMP discharged 6054 | -4/Waste | Lost 12 allies 6060 | -4/Waste | Entered Factory 6060 | -4/Factory | Accompanied by 5 allies 6134 | -4/Factory | Loaded intel: 8 recycling unit locations 6196 | -4/Factory | Discovered exit to Research (range 21) 6221 | -4/Factory | Spotted B-86 Titan 6225 | -4/Factory | Identified Transdimensional Reconstructor 6229 | -4/Factory | Entered Upper Caves 6480 | -4/Upper Caves | Learned Armory stockpile data 6480 | -4/Upper Caves | Learned Armory garrison access intel 6480 | -4/Upper Caves | Learned Armory emergency access door positions 6480 | -4/Upper Caves | Learned location of Extension (-4) 6496 | -4/Upper Caves | Discovered new exit (range 21) 6506 | -4/Upper Caves | Attracted the attention of an 0b10 checkpoint 6506 | -4/Upper Caves | Identified exit to Upper Caves 6506 | -4/Upper Caves | Entered another Upper Caves area 6508 | -4/Upper Caves | Attracted the attention of an 0b10 checkpoint 6536 | -4/Upper Caves | Learned Research security intel 6539 | -4/Upper Caves | Encountered a Warlord checkpoint 6585 | -4/Upper Caves | Discovered new exit (range 5) 6586 | -4/Upper Caves | Identified exit to Warlord 6590 | -4/Upper Caves | Entered Warlord 6599 | -4/Warlord | System corruption cleaned by Quarantine Array 6620 | -4/Warlord | Learned Factory repair station intel 6620 | -4/Warlord | Learned Factory scanalyzer intel 6620 | -4/Warlord | Learned Armory security intel 6620 | -4/Warlord | Learned location of Armory (-3) 6690 | -4/Warlord | Found Prototype Reactor 6690 | -4/Warlord | Identified Vortex Chain Reactor 6747 | -4/Warlord | Received a Watcher feed algorithm from an ecstatic Tinkerer 6752 | -4/Warlord | Warlord's base attacked by MAIN.C 6761 | -4/Warlord | Found Prototype Piercing Weapon 6761 | -4/Warlord | Identified Vortex Lance 6763 | -4/Warlord | Found Vortex Lance 6784 | -4/Warlord | Rebuked by Warlord 6829 | -4/Warlord | Opened side exit 6885 | -4/Warlord | Discovered new exit (range 9) 6886 | -4/Warlord | Identified exit to Proximity Caves 6886 | -4/Warlord | Entered Proximity Caves 6960 | -3/Proximity Caves | Encountered a Derelict sapper outpost 7020 | -3/Proximity Caves | Attracted the attention of an 0b10 checkpoint 7024 | -3/Proximity Caves | Discovered exit to Research (range 15) 7040 | -3/Proximity Caves | Entered Research 7040 | -3/Research | Evolved 2 slots: Propulsion x1, Utility x1 7041 | -3/Research | Identified exit to Armory 7043 | -3/Research | Loaded intel: 140 machine locations 7044 | -3/Research | Loaded intel: 26 terminal locations 7108 | -3/Research | Spotted B-86 Titan 7112 | -3/Research | Loaded intel: 5 recycling unit locations 7151 | -3/Research | Found Active Sensor Suite 7174 | -3/Research | Lost 4 parts (2n1u1w) 7241 | -3/Research | Discovered new exit (range 5) 7243 | -3/Research | Identified exit to Quarantine 7243 | -3/Research | Entered Quarantine 7252 | -3/Quarantine | Central database locked down 7288 | -3/Quarantine | Found Alien Artifact 7343 | -3/Quarantine | Cryocooling Duct disabled 7344 | -3/Quarantine | Discovered new exit (range 22) 7358 | -3/Quarantine | Ambient heat levels rising (+20) 7358 | -3/Quarantine | Non-combat units ordered to evacuate 7361 | -3/Quarantine | Found Alien Slashing Weapon 7361 | -3/Quarantine | Identified Sigix Broadsword 7420 | -3/Quarantine | Identified Subatomic Replicator 7431 | -3/Quarantine | Found Alien Energy Cannon 7493 | -3/Quarantine | Search patrols dispatched 7510 | -3/Quarantine | Identified exit to Research 7524 | -3/Quarantine | Found Alien Artifact 7534 | -3/Quarantine | Entered Research 7534 | -2/Research | Evolved 2 slots: Utility x2 7587 | -2/Research | Build established: Scout 7628 | -2/Research | Spotted B-90 Cyclops 7645 | -2/Research | Loaded intel: 5 recycling unit locations 7657 | -2/Research | Discovered new exit (range 20) 7672 | -2/Research | Identified exit to Testing 7672 | -2/Research | Entered Testing 7738 | -2/Testing | Found Prototype Device 7738 | -2/Testing | Identified Exp. Thermal Defense Suite 7747 | -2/Testing | Spotted Striker 7749 | -2/Testing | Found Prototype Device 7749 | -2/Testing | Identified Exp. Shock Absorption System 7752 | -2/Testing | Found Prototype Device 7752 | -2/Testing | Identified Exp. Focal Shield 7763 | -2/Testing | Scanned by Researcher 7780 | -2/Testing | Spotted Striker 7786 | -2/Testing | Protovariant out of control (PL-342WYOKJEK) 7786 | -2/Testing | Unleashed a protovariant (PL-342WYOKJEK) 7787 | -2/Testing | Found Prototype Device 7787 | -2/Testing | Identified Exp. EM Shield 7795 | -2/Testing | Fabricated Imp. Q-thruster? 7851 | -2/Testing | Found Prototype Launcher 7851 | -2/Testing | Identified Ragnarok Missile Launcher 7880 | -2/Testing | Spotted Fortress 7892 | -2/Testing | Discovered new exit (range 6) 7892 | -2/Testing | Discovered new exit (range 6) 7893 | -2/Testing | Identified exit to Section 7 7894 | -2/Testing | Identified exit to Protoforge 7894 | -2/Testing | Entered Protoforge 7894 | -2/Protoforge | Spotted B-90 Cyclops 7915 | -2/Protoforge | Spotted AP7-3 7915 | -2/Protoforge | Spotted AP7-3 7943 | -2/Protoforge | Superfortress began startup sequence 7953 | -2/Protoforge | Spotted Overlord 7953 | -2/Protoforge | Spotted EXE-6 7953 | -2/Protoforge | Spotted EXE-6 7972 | -2/Protoforge | Spotted EXE-6 7972 | -2/Protoforge | Spotted EXE-6 7981 | -2/Protoforge | Spotted Decapitator 7994 | -2/Protoforge | UFD initiated attack on Protoforge (Readiness: High) 7994 | -2/Protoforge | Loaded intel: 3 recycling unit locations 8010 | -2/Protoforge | Core integrity fell below 50% 8010 | -2/Protoforge | System corruption reached 10% 8030 | -2/Protoforge | Optimus greeted in Protoforge 8033 | -2/Protoforge | Found Scrap Suit 8037 | -2/Protoforge | Lost 8 parts (6n2u) 8053 | -2/Protoforge | Spotted Decapitator 8058 | -2/Protoforge | Found Prototype Processor 8058 | -2/Protoforge | Identified Exp. Core Analyzer 8061 | -2/Protoforge | Found Prototype Ballistic Gun 8061 | -2/Protoforge | Identified Cep. XC Strikerail 8067 | -2/Protoforge | Found Cep. XC Strikerail 8069 | -2/Protoforge | Found Prototype Device 8069 | -2/Protoforge | Identified Exp. Kinecellerator 8082 | -2/Protoforge | Lost 19 allies 8103 | -2/Protoforge | Found Cep. XC Strikerail 8202 | -2/Protoforge | Found Prototype Device 8202 | -2/Protoforge | Identified Exp. System Purifier 8208 | -2/Protoforge | Found Prototype Device 8208 | -2/Protoforge | Identified Cep. Weapon Articulator 8216 | -2/Protoforge | Found Prototype Device 8216 | -2/Protoforge | Identified Cep. Antimissile System 8240 | -2/Protoforge | Identified Core Cannon 8243 | -2/Protoforge | Additional patrols dispatched to research labs 8256 | -2/Protoforge | Spotted Executioner 8263 | -2/Protoforge | Spotted Executioner 8277 | -2/Protoforge | Crushed by falling debris 8332 | -2/Protoforge | Found 0bPrime Scrap Suit 8354 | -2/Protoforge | Build established: Scavenger-Scrapper 8499 | -2/Protoforge | Forge Plexus network access discovered 8510 | -2/Protoforge | Spotted Executioner 8518 | -2/Protoforge | Destroyed Executioner 8529 | -2/Protoforge | Spotted Striker 8535 | -2/Protoforge | Spotted Executioner 8548 | -2/Protoforge | Spotted Executioner 8558 | -2/Protoforge | Destroyed Striker 8572 | -2/Protoforge | Spotted Executioner 8587 | -2/Protoforge | Spotted Striker 8591 | -2/Protoforge | Spotted Striker 8629 | -2/Protoforge | Lost 16 allies 8658 | -2/Protoforge | Found Gamma Bomb Array 8701 | -2/Protoforge | Spotted Executioner 8753 | -2/Protoforge | Lost 6 allies 8797 | -2/Protoforge | Identified Terrabomb 8797 | -2/Protoforge | Used Terrabomb 8817 | -2/Protoforge | Spotted Striker 8818 | -2/Protoforge | Spotted Striker 8907 | -2/Protoforge | Lost 4 allies 8972 | -2/Protoforge | Spotted Striker 8974 | -2/Protoforge | Spotted Striker 9040 | -2/Protoforge | Spotted Hotshot 9069 | -2/Protoforge | Spotted Striker 9073 | -2/Protoforge | Spotted Striker 9084 | -2/Protoforge | Lost 10 allies 9100 | -2/Protoforge | Spotted Executioner 9105 | -2/Protoforge | Spotted Striker 9107 | -2/Protoforge | Destroyed Executioner 9131 | -2/Protoforge | UFD reported confirmed Drillbomb installation 9153 | -2/Protoforge | Lost 6 allies 9195 | -2/Protoforge | UFD reported confirmed Drillbomb installation 9203 | -2/Protoforge | Spotted Striker 9281 | -2/Protoforge | Lost 4 allies 9339 | -2/Protoforge | Spotted Executioner 9353 | -2/Protoforge | Core integrity fell below 20% 9386 | -2/Protoforge | Spotted Executioner 9389 | -2/Protoforge | Lost 5 allies 9391 | -2/Protoforge | Spotted Executioner 9393 | -2/Protoforge | Destroyed Executioner 9425 | -2/Protoforge | Spotted Executioner 9430 | -2/Protoforge | Spotted Executioner 9454 | -2/Protoforge | Destroyed Executioner 9458 | -2/Protoforge | Destroyed Executioner 9465 | -2/Protoforge | Found UFD Drillbomb 9471 | -2/Protoforge | Found UFD Drillbomb 9479 | -2/Protoforge | Destroyed 7 combat bots 9487 | -2/Protoforge | Lost 5 allies 9504 | -2/Protoforge | Installed UFD Drillbomb at designated target 9504 | -2/Protoforge | UFD reported confirmed Drillbomb installation 9534 | -2/Protoforge | Installed UFD Drillbomb at designated target 9534 | -2/Protoforge | UFD reported confirmed Drillbomb installation 9562 | -2/Protoforge | Found UFD Drillbomb 9570 | -2/Protoforge | Found UFD Drillbomb 9618 | -2/Protoforge | Spotted Hotshot 9618 | -2/Protoforge | Spotted Hotshot 9621 | -2/Protoforge | Destroyed Hotshot 9623 | -2/Protoforge | Spotted Executioner 9630 | -2/Protoforge | Destroyed Hotshot 9637 | -2/Protoforge | Spotted Executioner 9672 | -2/Protoforge | Spotted Striker 9673 | -2/Protoforge | Spotted Striker 9678 | -2/Protoforge | Lost 3 parts (1p1u1w) 9681 | -2/Protoforge | P-80 Master assimilated allied 02FBR-D 9688 | -2/Protoforge | Destroyed by Executioner with Helical Railgun Last Messages --------------- 09685_ Slug penetrates 02FBS-D. 09685_ Slug penetrates Executioner. 09685_ Slug penetrates 02FBQ-D. 09685_ Ovr. Huge Scrapsphere repairs itself (+0). 09685_ Acquired 2 matter. 09685_ Penetrated by Slug. 09686_ 02FBQ-D destroyed. 09686_ Slug penetrates 02FBR-D. 09686_ CPS modules swiftly deploy to protect 02FBR-D components. 09686_ 02FBR-D destroyed. 09686_ Ovr. Huge Scrapsphere repairs itself (+14). 09686_ Acquired 8 matter. 09687_ Executioner suffers critical hit (Burn). 09687_ N-04 Retriever collects Scrap Suit. 09687_ N-04 Retriever collects Ovr. Huge Scrapsphere. 09688_ 02FBS-D destroyed. Map ----- +----------------------------------------------------+ | # " ## """" ########"###???#?#????## | | """"" " "" " " [! ###+## #????## """"" | | " """ # #######+#### |%! +????## "" "" | | "" #########=#### = * #????## "" " | | ###### ## #&#### ###% ! #????## | | % = %#### ### +????## | | !%* ="### ### ####+####????## " | | [ !#### ### ## ####### ! | | ####### *%= * [%#### ### ## ####### [ | | ######## ! i * !## ### ## ##????# " | | #?# [ Y % ## ### ;# ##????# """ | | #?# =%=! g% ;; ### ## ##????# " """ | | #?## * [[ s E% ;==! ; ## ##????# "" | | ### %!%= % %%%n;; ;[; ;;########????# | | #### * % %%%;;;;#;;;;; #####????# | | ##?## " # % % % % ; #####????# """" | | ##??#### " # % ; % ; # #????# "" | | ##?????###" !=*%%%*" "% ; ## ###### " | | ##???????#" =### **!;=!% "" ; ; | | ##???????#"% #### !%=%! %% ; ; "" | | ########### "#####;;%|s " " ;/ ; "" | | [#########"% ## %%* % %; = ! ; "% | | [ """ # % ##" #= ! % % ! ;;; % | | """""" # ##" ;;;;;; %%;n%%;%;;ss%;; % | | """""" # ## ;; %% % n %%%%SS%% %% % % | | """""" " #; %; % %@%n%s%% % A%SS%% %%% %%" | | + ##" %;%&%%%n%%%s%s %s%j% %%%% | | # ##" ;; %;%;;;;%%%;;;;;%;;;%%%% " | | %! " "#% %; %%;[*%%![!=%; ;;; ; s % | | ######"#%#" ;; % ;%%% ; =!=![ [; ;[ =[ | | ### %"% ;#%;;;%%% ;=% *[; ; "" | | #"""#"!;%; %% %%% % ;; """ =; ; " | | "" %& n;% %% % %% %% ;; ; ; "" "" | | " % %%;%%% % % %% ;; ; ; " | | %"% %%%*[" % ; ;;;;;;;; ; ; | | ""%&""%[;%;% ; ; ; " ; ; | | %% ""!s;%; ; # ## ; ; ; "" | | %" "" ; ;% %;;;#### ;;;;;;;;;; ; """ | | %" " ; ; &## #?# #""""""" | | " "" ### %######?# " | | " "" " # ##?????## | | " ##; ######### | | " " " % #########;;;;;; | | " " " " ; | | !=! # " %" """ ; | | ]!%!%!""""" " """" ;;""""" | | %!!%/% & # "" " # " | | %!% *!=%= " """ """"" " | | !=* [%[!% % %%" " " """""#""""""" | | % =! % # " " | +----------------------------------------------------+ Best States ------------- Heat Dissipation 179 Energy Generation 75 Energy Capacity 700 Matter Stores 300 Matter Capacity 300 Sight Range 23 Robot Scan Range 20 Terrain Scan Density 10 ECM Strength 1 Jamming Range 16 Cloak Strength 3 Power Amplification 40 Additional Mass Support 6 Armor Coverage 900 Resistance: EX 75 Core Shielding 10 Propulsion Shielding 66 Point Defense Rating 480 Melee Speed Boost 40 Evasion (%) 79 Targeting Accuracy 30 Melee Accuracy 5 Target Analysis 6 Core Analysis 8 Recoil Reduction 2 Kinecelleration 66 Offensive Hacking 12 Defensive Hacking 28 Authchip Count 3 Item Schematics ----------------- Exp. Heat Sink | -5/Zhirov | Free Exp. Optical Array | -5/Zhirov | Free Imp. Arc Thrower | -5/Zhirov | Free Assault Drone Bay | -5/Zhirov | Free Spectral Analyzer | -2/Testing | Archive Prc. Phase Gun | -2/Testing | Archive Robot Schematics ------------------ K-01 Serf | -2/Testing | Archive Fabricated ------------ Imp. Q-thruster | x1 | -2/Testing | Preloaded Repaired ---------- Nothing Studied --------- Mic. Fission Core | -4/Factory | Hacked Impulse Thruster | -4/Factory | Hacked Lgt. Antimatter Reactor | -4/Factory | Hacked Field Propulsion Array | -4/Factory | Hacked Hyp. Mass Driver | -4/Factory | Hacked Q-thruster | -3/Quarantine | Hacked Alien Tech Used ----------------- Integrated Dissipator Sigix Broadsword Core Cannon Terrabomb Achievements -------------- Fine I'll Do It Myself Challenges ------------ None Game ------ Seed HackingCommAnalyzer Manual? 0 Play Time 02:57:24 Cumulative 812.7 hours Start 2026.04.26 @ 10:59:08 End 2026.04.27 @ 04:05:23 Sessions 6 Manual Loads 0 Difficulty Rogue Special Mode None Game No. 981 Rogue 981 Adventurer 0 Explorer 0 Win Type - Total 32 Types 16/1/5/3/2/0/2/2/1/0 Lore% 97 Gallery% 96 Achievement% 88 Wizard Run 0 Options --------- Layout 2 ASCII 0 Keyboard 0 Movement Mouse Keybinds 0 Fullscreen 2 Font 24/Tamsyn Map View 50x49 Zoom Use 0% Tactical HUD 1 Map Filters NONE Filters NONE Steam 1 RUN: e8d366bd-9af7-4720-a99e-34e877f246ba